fUST/lending_fUST_20240819
["ID","MTS","AMOUNT","RATE_DAILY","PERIOD"]
[335250954,1724035846182,-666.52,0.00016438,2]
[335250956,1724035846194,-500.0,0.00016438,2]
[335250958,1724035846203,-500.0,0.00016438,2]
[335250961,1724035846213,-500.0,0.00016438,2]
[335250963,1724035846223,-500.0,0.00016438,2]
[335250964,1724035846234,-500.0,0.00016438,2]
[335250967,1724035846243,-500.0,0.00016438,2]
[335250969,1724035846253,-511.87383453,0.00016438,2]
[335250971,1724035846262,-500.0,0.00016438,2]
[335250973,1724035846271,-506.45319963,0.00016438,2]
[335250975,1724035846280,-500.0,0.00016438,2]
[335250977,1724035846290,-500.0,0.00016438,2]
[335250979,1724035846299,-500.0,0.00016438,2]
[335250981,1724035846308,-547.88,0.00016438,2]
[335250983,1724035846318,-645.1023754,0.00016438,2]
[335250984,1724035846328,-678.81,0.00016438,2]
[335250986,1724035846337,-500.0,0.00016438,2]
[335250988,1724035846347,-549.61168111,0.00016438,2]
[335250990,1724035846358,-508.41664029,0.00016438,2]
[335250992,1724035846368,-604.13087481,0.00016438,2]
[335250994,1724035846378,-500.0,0.00016438,2]
[335250996,1724035846387,-504.55231395,0.00016438,2]
[335250998,1724035846397,-505.21305325,0.00016438,2]
[335251000,1724035846406,-500.0,0.00016438,2]
[335251002,1724035846415,-500.0,0.00016438,2]
[335251004,1724035846425,-500.0,0.00016438,2]
[335251006,1724035846435,-500.0,0.00016438,2]
[335251008,1724035846445,-500.0,0.00016438,2]
[335251010,1724035846455,-500.0,0.00016438,2]
[335251012,1724035846465,-500.0,0.00016438,2]
[335251014,1724035846474,-500.0,0.00016438,2]
[335251015,1724035846487,-500.0,0.00016438,2]
[335251018,1724035846502,-1103.45,0.00016438,2]
[335251020,1724035846522,-215.331835,0.00016438,2]
[335251021,1724035846539,-215.331835,0.00016438,2]
[335251023,1724035846557,-215.331835,0.00016438,2]
[335251026,1724035846575,-215.331835,0.00016438,2]
[335251031,1724035846594,-215.331835,0.00016438,2]
[335251034,1724035846610,-500.0,0.00016438,2]
[335251036,1724035846629,-556.69313548,0.00016438,2]
[335251037,1724035846646,-500.0,0.00016438,2]
[335251038,1724035846662,-500.0,0.00016438,2]
[335251039,1724035846681,-500.0,0.00016438,2]
[335251040,1724035846699,-215.331835,0.00016438,2]
[335251041,1724035846715,-215.331835,0.00016438,2]
[335251042,1724035846728,-279.27179706,0.00016438,2]
[335251043,1724035846748,-215.331835,0.00016438,2]
[335251044,1724035846762,-500.0,0.00016438,2]
[335251045,1724035846781,-215.331835,0.00016438,2]
[335251046,1724035846796,-215.331835,0.00016438,2]
[335251047,1724035846810,-1155.878446,0.00016438,2]
[335251048,1724035846825,-1155.878446,0.00016438,2]
[335251049,1724035846838,-507.0688947,0.00016438,2]
[335251050,1724035846852,-1155.878446,0.00016438,2]
[335251051,1724035846865,-500.0,0.00016438,2]
[335251052,1724035846879,-1155.878446,0.00016438,2]
[335251053,1724035846893,-1155.878446,0.00016438,2]
[335251054,1724035846906,-500.0,0.00016438,2]
[335251055,1724035846919,-501.12357685,0.00016438,2]
[335251056,1724035846933,-1155.878446,0.00016438,2]
[335251057,1724035846948,-645.59599321,0.00016438,2]
[335251058,1724035846961,-1155.878446,0.00016438,2]
[335251059,1724035846975,-500.0,0.00016438,2]
[335251060,1724035846989,-1155.878446,0.00016438,2]
[335251061,1724035847002,-1155.878446,0.00016438,2]
[335251062,1724035847016,-1155.878446,0.00016438,2]
[335251063,1724035847028,-178.886012,0.00016438,2]
[335251064,1724035847042,-689.0,0.00016438,2]
[335251065,1724035847055,-178.886012,0.00016438,2]
[335251066,1724035847069,-500.0,0.00016438,2]
[335251067,1724035847083,-178.886012,0.00016438,2]
[335251068,1724035847097,-290.44224381,0.00016438,2]
[335251069,1724035847111,-500.0,0.00016438,2]
[335251070,1724035847124,-178.886012,0.00016438,2]
[335251071,1724035847137,-178.886012,0.00016438,2]
[335251072,1724035847151,-711.44,0.00016438,2]
[335251073,1724035847163,-500.0,0.00016438,2]
[335251074,1724035847177,-500.0,0.00016438,2]
[335251075,1724035847190,-573.91,0.00016438,2]
[335251076,1724035847204,-504.24739265,0.00016438,2]
[335251077,1724035847217,-505.64103192,0.00016438,2]
[335251078,1724035847230,-103.5730151,0.00016438,2]
[335251079,1724035847758,-150.0,0.00016158,2]
[335251080,1724035847769,-75.3129969,0.00016438,2]
[335251081,1724035847779,-178.886012,0.00016438,2]
[335251082,1724035847788,-178.886012,0.00016438,2]
[335251083,1724035847798,-178.886012,0.00016438,2]
[335251084,1724035847807,-178.886012,0.00016438,2]
[335251085,1724035847817,-500.0,0.00016438,2]
[335251086,1724035847826,-500.0,0.00016438,2]
[335251087,1724035847835,-511.81363341,0.00016438,2]
[335251088,1724035847844,-500.0,0.00016438,2]
[335251089,1724035847854,-500.0,0.00016438,2]
[335251090,1724035847863,-505.66961911,0.00016438,2]
[335251091,1724035847873,-500.0,0.00016438,2]
[335251092,1724035847883,-500.0,0.00016438,2]
[335251093,1724035847892,-500.0,0.00016438,2]
[335251094,1724035847903,-500.0,0.00016438,2]
[335251095,1724035847914,-1338.69,0.00016438,2]
[335251096,1724035847925,-500.0,0.00016438,2]
[335251097,1724035847934,-500.0,0.00016438,2]
[335251098,1724035847943,-506.19767359,0.00016438,2]
[335251099,1724035847955,-500.0,0.00016438,2]
[335251100,1724035847964,-510.92412141,0.00016438,2]
[335251101,1724035847974,-514.65507619,0.00016438,2]
[335251102,1724035847985,-500.0,0.00016438,2]
[335251103,1724035847996,-520.92,0.00016438,2]
[335251104,1724035848005,-151.0,0.00016438,2]
[335251105,1724035848015,-151.0,0.00016438,2]
[335251106,1724035848027,-151.0,0.00016438,2]
[335251107,1724035848037,-500.0,0.00016438,2]
[335251108,1724035848049,-507.01915957,0.00016438,2]
[335251109,1724035848059,-151.0,0.00016438,2]
[335251110,1724035848070,-151.0,0.00016438,2]
[335251111,1724035848080,-508.38058557,0.00016438,2]
[335251112,1724035848091,-726.59,0.00016438,2]
[335251113,1724035848100,-151.0,0.00016438,2]
[335251114,1724035848110,-500.0,0.00016438,2]
[335251115,1724035848121,-151.0,0.00016438,2]
[335251116,1724035848130,-154.849305,0.00016438,2]
[335251117,1724035848139,-500.0,0.00016438,2]
[335251118,1724035848148,-703.34,0.00016438,2]
[335251119,1724035848159,-595.04,0.00016438,2]
[335251120,1724035848170,-500.0,0.00016438,2]
[335251121,1724035848180,-500.0,0.00016438,2]
[335251122,1724035848189,-500.0,0.00016438,2]
[335251123,1724035848199,-500.0,0.00016438,2]
[335251124,1724035848210,-502.60341497,0.00016438,2]
[335251125,1724035848219,-500.0,0.00016438,2]
[335251126,1724035848231,-500.0,0.00016438,2]
[335251127,1724035848241,-940.52,0.00016438,2]
[335251128,1724035848250,-500.0,0.00016438,2]
[335251129,1724035848259,-500.0,0.00016438,2]
[335251130,1724035848268,-565.92,0.00016438,2]
[335251131,1724035848277,-500.0,0.00016438,2]
[335251132,1724035848288,-500.0,0.00016438,2]
[335251133,1724035848299,-508.83498017,0.00016438,2]
[335251134,1724035848310,-509.30025231,0.00016438,2]
[335251135,1724035848321,-500.0,0.00016438,2]
[335251136,1724035848331,-500.0,0.00016438,2]
[335251137,1724035848341,-658.0,0.00016438,2]
[335251138,1724035848352,-500.0,0.00016438,2]
[335251139,1724035848363,-418.802026,0.00016438,2]
[335251140,1724035848374,-418.802026,0.00016438,2]
[335251141,1724035848385,-418.802026,0.00016438,2]
[335251142,1724035848396,-418.802026,0.00016438,2]
[335251143,1724035848407,-418.802026,0.00016438,2]
[335251144,1724035848418,-500.0,0.00016438,2]
[335251145,1724035848427,-500.0,0.00016438,2]
[335251146,1724035848437,-509.52963111,0.00016438,2]
[335251147,1724035848446,-418.802026,0.00016438,2]
[335251148,1724035848456,-500.0,0.00016438,2]
[335251149,1724035848466,-500.0,0.00016438,2]
[335251150,1724035848475,-500.0,0.00016438,2]
[335251151,1724035848486,-500.0,0.00016438,2]
[335251152,1724035848495,-418.802026,0.00016438,2]
[335251153,1724035848505,-500.0,0.00016438,2]
[335251154,1724035848515,-418.802026,0.00016438,2]
[335251155,1724035848525,-500.0,0.00016438,2]
[335251156,1724035848535,-418.802026,0.00016438,2]
[335251157,1724035848545,-500.0,0.00016438,2]
[335251158,1724035848555,-501.89638368,0.00016438,2]
[335251159,1724035848564,-418.802026,0.00016438,2]
[335251160,1724035848575,-560.49517306,0.00016438,2]
[335251161,1724035848585,-511.26886594,0.00016438,2]
[335251162,1724035848597,-500.0,0.00016438,2]
[335251163,1724035848607,-500.0,0.00016438,2]
[335251164,1724035848618,-500.0,0.00016438,2]
[335251165,1724035848627,-500.0,0.00016438,2]
[335251166,1724035848637,-500.0,0.00016438,2]
[335251167,1724035848649,-500.0,0.00016438,2]
[335251168,1724035848660,-612.31,0.00016438,2]
[335251169,1724035848671,-500.0,0.00016438,2]
[335251170,1724035848681,-600.07923547,0.00016438,2]
[335251171,1724035848692,-646.16712829,0.00016438,2]
[335251172,1724035848701,-516.95149098,0.00016438,2]
[335251173,1724035848712,-500.0,0.00016438,2]
[335251174,1724035848722,-500.0,0.00016438,2]
[335251175,1724035848735,-500.0,0.00016438,2]
[335251176,1724035848745,-500.0,0.00016438,2]
[335251177,1724035848756,-500.0,0.00016438,2]
[335251178,1724035848767,-500.0,0.00016438,2]
[335251179,1724035848777,-500.0,0.00016438,2]
[335251180,1724035848787,-500.0,0.00016438,2]
[335251181,1724035848796,-544.86037744,0.00016438,2]
[335251182,1724035848805,-500.0,0.00016438,2]
[335251183,1724035848816,-906.33,0.00016438,2]
[335251184,1724035848829,-500.0,0.00016438,2]
[335251185,1724035848839,-500.0,0.00016438,2]
[335251186,1724035848851,-500.0,0.00016438,2]
[335251187,1724035848860,-500.0,0.00016438,2]
[335251188,1724035848870,-500.51155699,0.00016438,2]
[335251189,1724035848880,-500.0,0.00016438,2]
[335251190,1724035848890,-674.41,0.00016438,2]
[335251191,1724035848900,-500.0,0.00016438,2]
[335251192,1724035848911,-530.14840223,0.00016438,2]
[335251193,1724035848921,-252.453748,0.00016438,2]
[335251194,1724035848931,-252.453748,0.00016438,2]
[335251195,1724035848940,-500.0,0.00016438,2]
[335251196,1724035848950,-252.453748,0.00016438,2]
[335251197,1724035848959,-252.453748,0.00016438,2]
[335251198,1724035848968,-252.453748,0.00016438,2]
[335251199,1724035848978,-508.80518489,0.00016438,2]
[335251200,1724035848988,-500.0,0.00016438,2]
[335251201,1724035848997,-500.0,0.00016438,2]
[335251202,1724035849006,-252.453748,0.00016438,2]
[335251203,1724035849015,-252.453748,0.00016438,2]
[335251204,1724035849025,-515.62797268,0.00016438,2]
[335251205,1724035849034,-252.453748,0.00016438,2]
[335251206,1724035849043,-252.453748,0.00016438,2]
[335251207,1724035849052,-252.453748,0.00016438,2]
[335251208,1724035849062,-522.33289813,0.00016438,2]
[335251209,1724035849072,-500.0,0.00016438,2]
[335251210,1724035849081,-521.3,0.00016438,2]
[335251211,1724035849090,-500.0,0.00016438,2]
[335251212,1724035849100,-500.0,0.00016438,2]
[335251213,1724035849109,-500.0,0.00016438,2]
[335251214,1724035849118,-500.0,0.00016438,2]
[335251215,1724035849127,-382.23695045,0.00016438,2]
[335251216,1724035849137,-500.0,0.00016438,2]
[335251217,1724035849146,-508.89358084,0.00016438,2]
[335251218,1724035849155,-714.07,0.00016438,2]
[335251219,1724035849165,-500.0,0.00016438,2]
[335251220,1724035849174,-794.94,0.00016438,2]
[335251221,1724035849184,-500.0,0.00016438,2]
[335251222,1724035849193,-500.0,0.00016438,2]
[335251223,1724035849203,-382.55627211,0.00016438,2]
[335251224,1724035849212,-500.0,0.00016438,2]
[335251225,1724035849223,-500.0,0.00016438,2]
[335251226,1724035849232,-151.0,0.00016438,2]
[335251227,1724035849241,-692.43,0.00016438,2]
[335251228,1724035849250,-151.0,0.00016438,2]
[335251229,1724035849260,-151.0,0.00016438,2]
[335251230,1724035849269,-151.0,0.00016438,2]
[335251231,1724035849278,-159.413865,0.00016438,2]
[335251232,1724035849288,-500.0,0.00016438,2]
[335251233,1724035849297,-500.0,0.00016438,2]
[335251234,1724035849306,-500.0,0.00016438,2]
[335251235,1724035849316,-1130.61,0.00016438,2]
[335251236,1724035849325,-500.0,0.00016438,2]
[335251237,1724035849334,-897.26,0.00016438,2]
[335251238,1724035849343,-151.0,0.00016438,2]
[335251239,1724035849353,-151.0,0.00016438,2]
[335251240,1724035849362,-500.0,0.00016438,2]
[335251241,1724035849372,-151.0,0.00016438,2]
[335251242,1724035849382,-151.0,0.00016438,2]
[335251243,1724035849391,-151.0,0.00016438,2]
[335251244,1724035849401,-500.0,0.00016438,2]
[335251245,1724035849410,-633.38913776,0.00016438,2]
[335251246,1724035849420,-500.0,0.00016438,2]
[335251247,1724035849430,-500.0,0.00016438,2]
[335251248,1724035849439,-500.0,0.00016438,2]
[335251249,1724035849449,-271.039611,0.00016438,2]
[335251250,1724035849458,-504.44864083,0.00016438,2]
[335251251,1724035849468,-239.48952832,0.00016438,2]
[335251257,1724036601163,3389.167645,0.000164,30]
[335251260,1724036839156,-600.88577429,7.911e-05,2]
[335251261,1724036839179,-273.37336231,7.939e-05,2]
[335251262,1724036839201,-300.0,8.476e-05,2]
[335251263,1724036839223,-300.0,8.476e-05,2]
[335251264,1724036839246,-608.60631008,8.477e-05,2]
[335251265,1724036848114,-729.07150514,8.477e-05,2]
[335251279,1724036974094,-300.0,8.476e-05,2]
[335251280,1724036974118,-300.0,8.476e-05,2]
[335251281,1724036974141,-23562.32218478,8.477e-05,2]
[335251282,1724036974163,-405.30195188,8.477e-05,2]
[335251283,1724036974187,-22802.99590684,8.521e-05,2]
[335251284,1724036974212,-250.0,8.629e-05,2]
[335251285,1724036974236,-250.0,8.652e-05,2]
[335251286,1724036974258,-250.0,8.676e-05,2]
[335251287,1724036974280,-250.0,8.7e-05,2]
[335251288,1724036974302,-250.0,8.723e-05,2]
[335251289,1724036974326,-250.0,8.747e-05,2]
[335251290,1724036974348,-250.0,8.771e-05,2]
[335251291,1724036974373,-250.0,8.794e-05,2]
[335251292,1724036974395,-250.0,8.818e-05,2]
[335251293,1724036974418,-250.0,8.842e-05,2]
[335251294,1724036974438,-250.0,8.865e-05,2]
[335251295,1724036974460,-250.0,8.889e-05,2]
[335251296,1724036974481,-214.59637431,8.913e-05,2]
[335251392,1724037039021,-3427.98927303,8.257e-05,2]
[335251394,1724037039033,-1801.46616147,8.257e-05,2]
[335251396,1724037039042,-35.40362569,8.913e-05,2]
[335251398,1724037039052,-250.0,8.937e-05,2]
[335251400,1724037039062,-250.0,8.96e-05,2]
[335251402,1724037039070,-250.0,8.984e-05,2]
[335251404,1724037039080,-250.0,9.008e-05,2]
[335251405,1724037039089,-250.0,9.031e-05,2]
[335251407,1724037039098,-250.0,9.055e-05,2]
[335251409,1724037039109,-250.0,9.079e-05,2]
[335251411,1724037039125,-33756.85534106,9.939e-05,2]
[335251413,1724037039138,-817.51538182,0.0001,2]
[335251415,1724037039148,-154.69833824,0.00010081,2]
[335251417,1724037039157,-160.7547708,0.00010081,2]
[335251419,1724037039167,-6578.56362463,0.00010081,2]
[335251421,1724037039176,-211.65712392,0.00010081,2]
[335251423,1724037039186,-372.50779557,0.00010081,2]
[335251425,1724037039197,-300.0,0.00010259,2]
[335251427,1724037039207,-179.19184346,0.0001026,2]
[335251429,1724037039217,-218.66051313,0.00010275,2]
[335251431,1724037039227,-709.1553272,0.00010428,2]
[335251433,1724037039237,-155.12307709,0.00010803,2]
[335251435,1724037039246,-154.83839525,0.00010803,2]
[335251437,1724037039255,-420.0,0.00011285,2]
[335251439,1724037039265,-20794.87454007,0.00012163,2]
[335251441,1724037039274,-167.0,0.00012414,2]
[335251443,1724037039283,-1257.57937378,0.000129,2]
[335251445,1724037039292,-154.79103211,0.00012985,2]
[335251447,1724037039302,-862.44048895,0.00013,2]
[335251449,1724037039311,-2332.89663189,0.00013598,2]
[335251451,1724037039321,-396.55616844,0.00013661,2]
[335251452,1724037039330,-50857.410193,0.00013678,2]
[335251454,1724037039339,-50857.410193,0.00013679,2]
[335251456,1724037039348,-50857.410193,0.00013689,2]
[335251458,1724037039358,-50857.410193,0.00013689,2]
[335251460,1724037039368,-158.10419074,0.00013697,2]
[335251462,1724037039378,-500.0,0.00013698,2]
[335251464,1724037039388,-500.0,0.00013698,2]
[335251466,1724037039398,-307.79862362,0.00013698,2]
[335251468,1724037039407,-500.0,0.00013698,2]
[335251470,1724037039416,-360.2560237,0.00013698,2]
[335251472,1724037039426,-536.02607522,0.00013698,2]
[335251474,1724037039435,-500.0,0.00013698,2]
[335251476,1724037039445,-363.90953627,0.00013698,2]
[335251478,1724037039454,-154.76012181,0.00013698,2]
[335251480,1724037039464,-500.0,0.00013698,2]
[335251482,1724037039473,-500.0,0.00013698,2]
[335251484,1724037039482,-500.0,0.00013698,2]
[335251486,1724037039491,-220.7862112,0.00013698,2]
[335251488,1724037039500,-500.0,0.00013698,2]
[335251490,1724037039510,-500.0,0.00013698,2]
[335251492,1724037039519,-500.0,0.00013698,2]
[335251494,1724037039528,-500.0,0.00013698,2]
[335251496,1724037039538,-500.0,0.00013698,2]
[335251498,1724037039547,-436.11099618,0.00013698,2]
[335251500,1724037039556,-500.0,0.00013698,2]
[335251502,1724037039566,-500.59257658,0.00013698,2]
[335251504,1724037039575,-500.0,0.00013698,2]
[335251510,1724037039709,-567.65728595,0.00013698,2]
[335251511,1724037039719,-500.0,0.00013698,2]
[335251512,1724037039729,-248.81229758,0.00013698,2]
[335251513,1724037039739,-500.0,0.00013698,2]
[335251514,1724037039750,-500.0,0.00013698,2]
[335251515,1724037039760,-225.49351687,0.00013698,2]
[335251516,1724037039770,-483.43559112,0.00013698,2]
[335251517,1724037039779,-579.13083007,0.00013698,2]
[335251518,1724037039788,-500.0,0.00013698,2]
[335251519,1724037039798,-500.0,0.00013698,2]
[335251520,1724037039807,-500.0,0.00013698,2]
[335251521,1724037039817,-500.0,0.00013698,2]
[335251522,1724037039826,-333.5415138,0.00013698,2]
[335251523,1724037039836,-500.0,0.00013698,2]
[335251524,1724037039845,-500.0,0.00013698,2]
[335251525,1724037039857,-500.0,0.00013698,2]
[335251526,1724037039870,-243.07384544,0.00013698,2]
[335251527,1724037039881,-500.0,0.00013698,2]
[335251528,1724037039893,-500.0,0.00013698,2]
[335251529,1724037039905,-551.56387777,0.00013698,2]
[335251530,1724037039916,-502.51711214,0.00013698,2]
[335251531,1724037039927,-3000.0,0.00013699,2]
[335251532,1724037039939,-35359.4473214,0.00013699,2]
[335251533,1724037039950,-2611.899621,0.00013699,2]
[335251534,1724037039961,-1141.40173294,0.00013699,2]
[335251535,1724037039972,-1141.40173294,0.00013699,2]
[335251536,1724037039982,-1141.40173294,0.00013699,2]
[335251537,1724037039993,-1141.40173294,0.00013699,2]
[335251538,1724037040003,-1141.40173294,0.00013699,2]
[335251539,1724037040012,-1141.40173294,0.00013699,2]
[335251540,1724037040021,-1141.40173294,0.00013699,2]
[335251541,1724037040030,-1141.40173294,0.00013699,2]
[335251542,1724037040040,-1141.40173294,0.00013699,2]
[335251543,1724037040049,-1141.40173294,0.00013699,2]
[335251544,1724037040058,-1141.40173294,0.00013699,2]
[335251545,1724037040067,-1141.40173294,0.00013699,2]
[335251546,1724037040078,-1141.40173294,0.00013699,2]
[335251547,1724037040087,-1141.40173294,0.00013699,2]
[335251548,1724037040096,-1141.40173294,0.00013699,2]
[335251549,1724037040106,-1141.40173294,0.00013699,2]
[335251550,1724037040116,-1141.40173294,0.00013699,2]
[335251551,1724037040130,-1141.40173294,0.00013699,2]
[335251552,1724037040140,-1141.40173294,0.00013699,2]
[335251553,1724037040152,-1141.40173294,0.00013699,2]
[335251554,1724037040163,-1141.40173294,0.00013699,2]
[335251555,1724037040174,-1141.40173294,0.00013699,2]
[335251556,1724037040185,-1141.40173294,0.00013699,2]
[335251557,1724037040198,-1141.40173294,0.00013699,2]
[335251558,1724037040211,-1141.40173294,0.00013699,2]
[335251559,1724037040222,-1141.40173294,0.00013699,2]
[335251560,1724037040233,-1141.40173294,0.00013699,2]
[335251561,1724037040243,-1141.40173294,0.00013699,2]
[335251562,1724037040252,-1141.40173284,0.00013699,2]
[335251563,1724037040262,-500.0,0.00013781,2]
[335251564,1724037040271,-600.88577429,0.00013792,2]
[335251565,1724037040280,-50857.410193,0.00013814,2]
[335251566,1724037040290,-326.880335,0.00014247,2]
[335251567,1724037040299,-2332.89663186,0.00014258,2]
[335251568,1724037040309,-150.112233,0.000143,2]
[335251569,1724037040319,-158.036928,0.000145,2]
[335251570,1724037040328,-500.0,0.00014506,2]
[335251571,1724037040337,-150.112233,0.000146,2]
[335251572,1724037040346,-150.112233,0.000147,2]
[335251573,1724037040356,-150.112233,0.000148,2]
[335251574,1724037040366,-2332.89663186,0.00014918,2]
[335251575,1724037040377,-953.38755458,0.00015,2]
[335251576,1724037040386,-1110.9613583,0.00015,2]
[335251577,1724037040397,-150.112233,0.00015,2]
[335251578,1724037040407,-150.112233,0.000151,2]
[335251579,1724037040417,-500.0,0.00015269,2]
[335251580,1724037040426,-150.112233,0.000153,2]
[335251581,1724037040437,-150.112233,0.000154,2]
[335251582,1724037040446,-1414.0,0.00015453,2]
[335251583,1724037040456,-4166.0,0.00015453,2]
[335251584,1724037040466,-4186.221,0.00015453,2]
[335251585,1724037040475,-2332.89663186,0.00015578,2]
[335251586,1724037040485,-150.112233,0.000156,2]
[335251587,1724037040495,-150.112233,0.000156,2]
[335251588,1724037040505,-291.63821,0.00015671,2]
[335251589,1724037040515,-321.929013,0.00015671,2]
[335251590,1724037040525,-181.224542,0.00015671,2]
[335251591,1724037040535,-160.964507,0.00015671,2]
[335251592,1724037040544,-168.901412,0.00015671,2]
[335251593,1724037040553,-158.075874,0.00015671,2]
[335251594,1724037040563,-185.421903,0.00015671,2]
[335251595,1724037040573,-172.519039,0.00015671,2]
[335251596,1724037040582,-181.224541,0.00015671,2]
[335251597,1724037040592,-50857.410193,0.00015702,2]
[335251598,1724037040601,-500.0,0.00015712,7]
[335251599,1724037040610,-500.0,0.00015712,7]
[335251600,1724037040620,-500.0,0.00015712,7]
[335251601,1724037040629,-500.0,0.00015712,7]
[335251602,1724037040638,-500.0,0.00015712,7]
[335251603,1724037040648,-500.0,0.00015712,7]
[335251604,1724037040657,-500.0,0.00015712,7]
[335251605,1724037040667,-500.0,0.00015712,7]
[335251606,1724037040676,-500.0,0.00015712,7]
[335251607,1724037040686,-500.0,0.00015712,7]
[335251608,1724037040695,-500.0,0.00015712,7]
[335251609,1724037040704,-500.0,0.00015712,7]
[335251610,1724037040713,-500.0,0.00015712,7]
[335251611,1724037040723,-500.0,0.00015712,7]
[335251612,1724037040732,-500.0,0.00015712,7]
[335251613,1724037040741,-500.0,0.00015712,7]
[335251614,1724037040751,-500.0,0.00015712,7]
[335251615,1724037040760,-500.0,0.00015712,7]
[335251616,1724037040770,-379.47,0.00015712,7]
[335251617,1724037040779,-500.0,0.00015712,7]
[335251618,1724037040788,-500.0,0.00015712,7]
[335251619,1724037040797,-500.0,0.00015712,7]
[335251620,1724037040807,-500.0,0.00015712,7]
[335251621,1724037040816,-500.0,0.00015712,7]
[335251622,1724037040826,-207.51,0.00015712,7]
[335251623,1724037040835,-500.0,0.00015712,7]
[335251624,1724037040844,-500.0,0.00015712,7]
[335251625,1724037040854,-500.0,0.00015712,7]
[335251626,1724037040864,-500.0,0.00015712,7]
[335251627,1724037040874,-500.0,0.00015712,7]
[335251628,1724037040883,-500.0,0.00015712,7]
[335251629,1724037040893,-500.0,0.00015712,7]
[335251630,1724037040902,-500.0,0.00015712,7]
[335251631,1724037040911,-500.0,0.00015712,7]
[335251632,1724037040920,-500.0,0.00015712,7]
[335251633,1724037040930,-191.82,0.00015712,7]
[335251634,1724037040939,-291.63821,0.00015867,2]
[335251635,1724037040949,-321.929013,0.00015867,2]
[335251636,1724037040959,-160.964507,0.00015867,2]
[335251637,1724037040969,-295.0138388,0.00015872,2]
[335251638,1724037040981,-500.0,0.0001589,2]
[335251639,1724037040990,-500.0,0.0001589,2]
[335251640,1724037041000,-500.0,0.0001589,2]
[335251641,1724037041009,-500.0,0.0001589,2]
[335251642,1724037041019,-500.0,0.0001589,2]
[335251643,1724037041028,-500.0,0.0001589,2]
[335251645,1724037041038,-500.0,0.0001589,2]
[335251647,1724037041048,-502.62767966,0.0001589,2]
[335251649,1724037041057,-376.223994,0.0001589,2]
[335251651,1724037041067,-150.112233,0.000159,2]
[335251653,1724037041077,-150.112233,0.000159,2]
[335251655,1724037041087,-3304.8434515,0.000159,2]
[335251657,1724037041097,-158.075874,0.00015932,2]
[335251660,1724037041107,-5244.78933856,0.00015999,2]
[335251662,1724037041118,-135557.46,0.00016,2]
[335251664,1724037041129,-10808.55505093,0.00016,2]
[335251666,1724037041139,-181.224542,0.00016063,2]
[335251668,1724037041149,-181.224541,0.00016063,2]
[335251669,1724037041159,-291.63821,0.00016063,2]
[335251671,1724037041170,-321.929013,0.00016063,2]
[335251672,1724037041180,-160.964507,0.00016063,2]
[335251673,1724037041190,-500.0,0.00016073,2]
[335251674,1724037041200,-466.22591532,0.00016073,2]
[335251675,1724037041209,-500.0,0.00016073,2]
[335251676,1724037041218,-153.0,0.0001611,2]
[335251677,1724037041228,-150.594,0.00016158,2]
[335251678,1724037041237,-187.323,0.00016158,2]
[335251679,1724037041246,-150.074,0.00016158,2]
[335251680,1724037041256,-150.0,0.00016158,2]
[335251681,1724037041265,-521.0,0.00016158,2]
[335251682,1724037041276,-1000.0,0.00016188,2]
[335251683,1724037041287,-158.075874,0.00016193,2]
[335251684,1724037041298,-250.0,0.000162,2]
[335251685,1724037041309,-150.112233,0.000162,2]